Cogmind - Beta 14 @@@ ROGUE MODE // 2024.12.09 @ 07:19:59 Player: boba Result: Destroyed by as-47330 with Assembled Rifle Performance ------------- Evolutions (1) 500 Regions Visited (3) 600 Robots Destroyed (0) 0 Value Destroyed (0) 0 Prototype IDs (0) 0 Alien Tech Used (0) 0 Bonus (200) 200 TOTAL SCORE: 1300 Bonus ------- Pacifist 200 Cogmind --------- Core Integrity 0/400 Matter 220/300 Energy 100/100 System Corruption 4% Temperature Cool (20) Movement Walking (120) Location -9/Mines Parts ------- > --- POWER (1) -------- (None) > --- PROPULSION (3) --- Aluminum Leg > --- UTILITY (3) ------ Small Storage Unit > --- WEAPON (2) ------- (None) > --- INVENTORY (8) ---- Ion Engine Light Assault Rifle Datajack Peak State ------------ > --- POWER ------------ Ion Engine > --- PROPULSION ------- Improved Treads Wheel Wheel > --- UTILITY ---------- Small Storage Unit ECM Suite Shield Generator > --- WEAPON ----------- Medium Laser Light Assault Rifle > --- INVENTORY -------- Ion Engine Ion Engine Aluminum Leg Aluminum Leg Datajack [Rating: 11] Favorites ----------- Power Ion Engine Engine Ion Engine Propulsion Wheel Treads Improved Treads Leg Aluminum Leg Wheel Wheel Utility Small Storage Unit Device Shield Generator Storage Small Storage Unit Weapon Medium Laser Energy Gun Medium Laser Ballistic Gun Light Assault Rifle Build | -11 -10 -9 -9 ------- Run | Yrd Mat Mat Min Slots Evolved 2 | . . 2 . Power . | . . . . Propulsion 1 | . . 1 . Utility 1 | . . 1 . Weapon . | . . . . Parts Attached 15 | 6 3 3 3 Power 2 | 1 . . 1 Engine 2 | 1 . . 1 Core . | . . . . Reactor . | . . . . Propulsion 7 | 2 1 2 2 Treads 2 | . . 2 . Leg 2 | . . . 2 Wheel 3 | 2 1 . . Hover . | . . . . Flight . | . . . . Utility 4 | 1 2 1 . Device 3 | . 2 1 . Storage 1 | 1 . . . Processor . | . . . . Hackware . | . . . . Protection . | . . . . Artifact . | . . . . Weapon 2 | 2 . . . Energy Gun 1 | 1 . . . Energy Cannon . | . . . . Ballistic Gun 1 | 1 . . . Ballistic Cannon . | . . . . Launcher . | . . . . Special Weapon . | . . . . Impact Weapon . | . . . . Slashing Weapon . | . . . . Piercing Weapon . | . . . . Special Melee Weapon . | . . . . Unidentified Prototypes . | . . . . Parts Lost 5 | . . 3 2 Power 2 | . . 1 1 Propulsion . | . . . . Utility 2 | . . 1 1 Weapon 1 | . . 1 . Highest Loss Streak 5 | . . 3 5 To Critical Strikes . | . . . . Average Slot Usage (%) 78 | . 92 73 55 Engine 11 | . 14 9 11 Treads 7 | . . 12 . Leg 1 | . . . 22 Wheel 13 | . 28 6 . Device 12 | . 7 16 11 Storage 12 | . 14 11 11 Energy Gun 11 | . 14 11 . Ballistic Gun 9 | . 14 7 . Peak Build Rating 11 | 6 8 11 5 Average Rating 7 | 4 6 8 4 On Entrance 4 | . 6 8 2 Naked Turns . | . . . . Heaviest Build 17 | 13 15 17 12 Greatest Support 46 | 20 20 46 20 Greatest Overweight (x) 3 | 3 1 2 . Average Overweight (x) . | . . . . Largest Inventory Capacity 8 | 8 8 8 8 Average Capacity 7 | 7 8 8 8 Most Carried 7 | 3 5 7 5 Average Carried 4 | 1 4 5 3 Final Capacity 8 | 8 8 8 8 Final Carried 6 | 3 5 6 3 Class Distribution -------------------- 100% | Mutant Dominant Class ---------------- Mutant | -10/Materials Mutant | -9/Materials Mutant | -9/Mines Resources | -11 -10 -9 -9 ----------- Run | Yrd Mat Mat Min Matter Collected 223 | 223 . . . Remotely . | . . . . Salvage Created . | . . . . Parts . | . . . . Haulers Intercepted . | . . . . Recyclers Shooed . | . . . . Parts Field Recycled . | . . . . Retrieved Matter . | . . . . Parts Self-Destructed . | . . . . Prevented . | . . . . Kills | -11 -10 -9 -9 ------- Run | Yrd Mat Mat Min Combat Hostiles Destroyed . | . . . . Classes Destroyed . | . . . . Best Kill Streak . | . . . . Combat Bots Only . | . . . . Max Kills in Single Turn . | . . . . Gunslinging . | . . . . Exploded . | . . . . Melee . | . . . . Uniques/NPCs Destroyed . | . . . . Combat | -11 -10 -9 -9 -------- Run | Yrd Mat Mat Min Hostile Shots Fired 74 | . . 43 31 Missed 15 | . . 4 11 Damage Taken 1091 | . . 645 446 Core 406 | . . 156 250 Absorbed by Shields 100 | . . 100 . Core Remaining (%) 100 | 100 100 . . Volleys Fired 23 | . 2 21 . Largest 2 | . 2 2 . Hottest 70 | . 70 70 . Shots Fired 32 | . 4 28 . Gun 32 | . 4 28 . Cannon . | . . . . Launcher . | . . . . Special . | . . . . Kinetic 13 | . 2 11 . Thermal 19 | . 2 17 . Explosive . | . . . . Electromagnetic . | . . . . Robot Hit Streak 7 | . 1 7 . Robot Miss Streak 2 | . 1 2 . Penetration Max . | . . . . Secondary Targets . | . . . . Shots Hit Robots 21 | . 2 19 . Core Hits 10 | . . 7 3 Critical Kills . | . . . . Critical Parts Destroyed . | . . . . Critical Strikes 1 | . . 1 . Burn 1 | . . 1 . Melee Attacks . | . . . . Impact . | . . . . Slashing . | . . . . Piercing . | . . . . Sneak Attacks . | . . . . Combat Hostiles . | . . . . Follow-up Attacks . | . . . . Damage Inflicted 247 | . 19 213 15 Guns 222 | . 19 203 . Cannons . | . . . . Explosions . | . . . . Melee . | . . . . Ramming 25 | . . 10 15 Kinetic 85 | . 19 66 . Thermal 137 | . . 137 . Explosive . | . . . . Electromagnetic . | . . . . Impact . | . . . . Slashing . | . . . . Piercing . | . . . . Highest Corruption 4 | . 1 . 4 Average Corruption 3 | . 1 . 4 Corruption Purged . | . . . . Corruption Blocked . | . . . . Overload Shots . | . . . . Overflow Damage . | . . . . Projectiles . | . . . . Explosions . | . . . . Melee . | . . . . Knockbacks . | . . . . Impact . | . . . . Kinetic . | . . . . Secondary . | . . . . Self-Inflicted Damage 2 | . . 2 . Shots . | . . . . Rammed 5 | . . 5 . Targets Rammed 10 | . . 5 5 Kicked 5 | . . . 5 Crushed . | . . . . Highest Temperature 88 | . 30 88 . Average Temperature 28 | . 18 30 . Received Heat Transfer 166 | . . 106 60 Siege Activations . | . . . . Robots Corrupted . | . . . . Combat Hostiles . | . . . . Parts Fried . | . . . . Impact Corruptions . | . . . . Robots Melted . | . . . . Combat Hostiles . | . . . . Parts Melted . | . . . . Heat Transferred 481 | . . 481 . Parts Sabotaged . | . . . . Parts Stolen . | . . . . Parts Stripped . | . . . . Power Chain Reactions . | . . . . Alert | -11 -10 -9 -9 ------- Run | Yrd Mat Mat Min Peak Influence 20 | . 15 20 . Initial 5 | . . 5 . Average 10 | . 9 15 . Maximum Alert Level . | . . . . Low Security (%) 100 | 100 100 100 100 Level 1 . | . . . . Level 2 . | . . . . Level 3 . | . . . . Level 4 . | . . . . Level 5 . | . . . . High Security . | . . . . Max Security . | . . . . Squads Dispatched . | . . . . Investigation . | . . . . Extermination . | . . . . Reinforcement . | . . . . Assault . | . . . . Garrison . | . . . . Intercept . | . . . . Searches Triggered . | . . . . Construction Impeded . | . . . . Haulers Reinforced . | . . . . Active Scanning Responses . | . . . . Cargo Convoy Interrupts . | . . . . Stealth | -11 -10 -9 -9 --------- Run | Yrd Mat Mat Min Distress Signals . | . . . . Communications Jammed . | . . . . Distress Signals . | . . . . Times Spotted 32 | . 3 6 23 Peak Tracking Total 20 | . 3 5 20 Tactical Retreats 4 | . . 3 1 Traps | -11 -10 -9 -9 ------- Run | Yrd Mat Mat Min Traps Triggered 2 | . 2 . . Indirectly . | . . . . Trap Hack Attempts . | . . . . Triggered . | . . . . Disarmed . | . . . . Reprogrammed . | . . . . Reused . | . . . . Traps Extracted . | . . . . Installed . | . . . . Triggered . | . . . . Machines | -11 -10 -9 -9 ---------- Run | Yrd Mat Mat Min Machines Disabled . | . . . . Max in Single Turn . | . . . . Machines Repaired . | . . . . Machines Dismantled . | . . . . Machines Sabotaged . | . . . . Overloaded Fab Kills . | . . . . Hacking | -11 -10 -9 -9 --------- Run | Yrd Mat Mat Min Machines Accessed . | . . . . Terminals . | . . . . Fabricators . | . . . . Repair Stations . | . . . . Recycling Units . | . . . . Scanalyzers . | . . . . Garrison Access . | . . . . Total Hacks . | . . . . Successful . | . . . . Failed . | . . . . Catastrophic . | . . . . Database Lockouts . | . . . . Manual . | . . . . Terminals . | . . . . Fabricators . | . . . . Repair Stations . | . . . . Recycling Units . | . . . . Scanalyzers . | . . . . Garrison Access . | . . . . Terminal Hacks . | . . . . Fabricator Hacks . | . . . . Repair Station Hacks . | . . . . Recycling Unit Hacks . | . . . . Scanalyzer . | . . . . Garrison Access Hacks . | . . . . Unauthorized Hacks . | . . . . Terminals . | . . . . Fabricators . | . . . . Repair Stations . | . . . . Recycling Units . | . . . . Scanalyzers . | . . . . Garrison Access . | . . . . Data Cores Recovered . | . . . . Used . | . . . . Hacking Detections . | . . . . Full Trace Events . | . . . . Feedback Events . | . . . . Feedback Blocked . | . . . . Robot Schematics Acquired . | . . . . Robots Built . | . . . . Authchips . | . . . . Time . | . . . . Total Robot Build Rating . | . . . . Part Schematics Acquired . | . . . . Parts Built . | . . . . Authchips . | . . . . Time . | . . . . Total Part Build Rating . | . . . . Parts Repaired . | . . . . Time . | . . . . Parts Recycled . | . . . . Recycled Matter . | . . . . Retrieved Matter . | . . . . Retrieved Components . | . . . . Parts Scanalyzed . | . . . . Part Schematics Acquired . | . . . . Parts Damaged . | . . . . Bothacking | -11 -10 -9 -9 ------------ Run | Yrd Mat Mat Min Used RIF Installer . | . . . . Robots Hacked . | . . . . Non-combat . | . . . . Combat . | . . . . Robot Hacks Applied . | . . . . Relay Couplers Released . | . . . . Fabnet Peak Effective % . | . . . . Robots Rewired . | . . . . Allies Hacked . | . . . . Hacks Repelled . | . . . . Allies | -11 -10 -9 -9 -------- Run | Yrd Mat Mat Min Total Allies . | . . . . Largest Group . | . . . . Highest-Rated Group . | . . . . Highest-Rated Ally . | . . . . Total Orders . | . . . . Ally Attacks . | . . . . Total Damage . | . . . . Kills . | . . . . Allies Corrupted . | . . . . Allies Melted . | . . . . Intel | -11 -10 -9 -9 ------- Run | Yrd Mat Mat Min Robot Analysis Total . | . . . . Derelict Logs Recovered . | . . . . Drone Launches . | . . . . Drone Recoveries . | . . . . Exploration | -11 -10 -9 -9 ------------- Run | Yrd Mat Mat Min Turns Passed 346 | 53 105 166 22 Spaces Moved 229 | 47 116 55 11 Core 20 | 10 . 10 . Treads 15 | . . 15 . Legs 11 | . . . 11 Wheels 183 | 37 116 30 . Hover . | . . . . Flight . | . . . . Fastest Speed 50 | 50 80 80 120 Average Speed 91 | 85 80 114 120 Slowest Speed 200 | 200 95 160 120 Overloaded Moves . | . . . . Propulsion Burnouts . | . . . . Robots Hopped . | . . . . Cave-ins Triggered . | . . . . Exploration Rate (%) 10 | 3 25 8 5 Regions Visited 3 Branch Regions 1 Pre-discovered Areas . | . . . . Known Exits Taken . | . . . . Unknown Exits Taken 3 | 1 1 1 . Scrap Searched . | . . . . Spaces Dug . | . . . . Terrain Destroyed . | . . . . Melee . | . . . . Projectile . | . . . . AOE . | . . . . Terrain Rammed . | . . . . Walls Destroyed . | . . . . Machines Disabled . | . . . . Actions | -11 -10 -9 -9 --------- Run | Yrd Mat Mat Min Total 327 | 56 122 130 19 Wait 42 | . . 42 . Move 226 | 46 115 54 11 Hop . | . . . . Pick Up 7 | 4 2 1 . Fast Attach 11 | 5 3 3 . Attach 4 | 1 . . 3 Detach 2 | . . 2 . Swap . | . . . . Drop 2 | . . 2 . Fire 23 | . 2 21 . Melee . | . . . . Ram 1 | . . 1 . Kick 5 | . . . 5 Crush 4 | . . 4 . Escape Stasis . | . . . . Rewire . | . . . . Trap . | . . . . Miscellaneous . | . . . . Route ------- -11/Scrapyard -10/Materials -9/Materials -9/Mines History --------- Turn | Location | Event 25 | -11/Scrapyard | Discovered new exit (range 15) 54 | -11/Scrapyard | Entered Materials 144 | -10/Materials | Discovered new exit (range 8) 159 | -10/Materials | Entered another Materials area 159 | -9/Materials | Evolved 2 slots: Propulsion x1, Utility x1 302 | -9/Materials | Discovered new exit (range 15) 305 | -9/Materials | Build established: Mutant 325 | -9/Materials | Entered Mines 326 | -9/Mines | Assembled infested the area 329 | -9/Mines | Met a Derelict testing a Signal Generator 331 | -9/Mines | Assisted by a Guerilla fighting off Assembled 343 | -9/Mines | Core integrity fell below 50% 347 | -9/Mines | Core integrity fell below 20% 347 | -9/Mines | Destroyed by as-47330 with Assembled Rifle Last Messages --------------- 00338_ OR-7SX(h) knocked back. 00338_ as-82257 shuts down. 00339_ ALERT: Intercepting significant anomalous signal. Redirecting assault force. 00339_ as-89452 knocked back. 00341_ Aluminum Leg severed. 00341_ Penetrated by HV Slug. 00341_ HV Slug penetrates Wall. 00341_ ECM Suite destroyed. 00341_ System corrupted by crushing effect (+4). 00341_ Knocked back. 00342_ Kicked as-85906 out of the way. 00343_ Kicked as-85906. 00344_ OR-7SX(h) system corrupted by crushing effect. 00344_ Kicked as-85906. 00345_ OR-7SX(h) destroyed. 00345_ Ion Engine destroyed. 00345_ Kicked as-85906 out of the way. 00346_ Kicked as-18632 out of the way. Map ----- +----------------------------------------------------+ | ?????????????????????????????????????????????????? | | ?????????????????????????????????????????????????? | | ?????????????????????????????????????????????????? | | ?????????????????????????????????????????????????? | | ?????????????????????????????????????????????????? | | ?????????????????????????????????????????????????? | | ?????????????????????????????????????????????????? | | ??????????????????????????? ?????????????????????? | | ??????????????????????????? ????????????????????? | | ??????????????????????????? ????????????????????? | | ?????????????????????????? ?????????????????????? | | ?????????????????????????? ?????????????????????? | | ?????????????????????????? ??????????????????????? | | ???????????????????????### ??????????????????????? | | ??????????????????????## #??????????????????????? | | ??????????????????????# ##?????????????????????? | | ?????????????????????## #?????????????????????? | | ??????????????????#### #?????????????????????? | | ?????????????????## #??????????????????????? | | ?????????????????# #???????????????????????? | | ????????????????## *%#???????????????????????? | | ????????????????# aa###?????????????????????? | | ????????????????# = a;#?????????????????????? | | ????????????????## #;aaa##?????????????????????? | | ?????????????????#####"# a###a < ????????? | | ?????????????????????### @%aa #???????????? | | ??????????????????????# aaa a #????????????? | | ?????????????????????# =%[a### # #????????????? | | ?????????????????????# ##???#?? ##????????????? | | ?????????????????????# ###??????????????????????? | | ?????????????????????###?????????????????????????? | | ?????????????????????????????????????????????????? | | ?????????????????????????????????????????????????? | | ?????????????????????????????????????????????????? | | ?????????????????????????????????????????????????? | | ?????????????????????????????????????????????????? | | ?????????????????????????????????????????????????? | | ?????????????????????????????????????????????????? | | ?????????????????????????????????????????????????? | | ?????????????????????????????????????????????????? | | ?????????????????????????????????????????????????? | | ?????????????????????????????????????????????????? | | ?????????????????????????????????????????????????? | | ?????????????????????????????????????????????????? | | ?????????????????????????????????????????????????? | | ?????????????????????????????????????????????????? | | ?????????????????????????????????????????????????? | | ?????????????????????????????????????????????????? | | ?????????????????????????????????????????????????? | | ?????????????????????????????????????????????????? | +----------------------------------------------------+ Best States ------------- Heat Dissipation 28 Energy Generation 10 Energy Capacity 250 Matter Stores 263 Matter Capacity 300 Sight Range 16 Terrain Scan Density 10 ECM Strength 1 Evasion (%) 45 Recoil Reduction 2 Item Schematics ----------------- None Robot Schematics ------------------ None Fabricated ------------ Nothing Alien Tech Used ----------------- None Achievements -------------- Hunted Challenges ------------ None Game ------ Seed CoordinationLatentBeam Manual? 0 Play Time 00:08:57 Cumulative 1.5 hours Start 2024.12.09 @ 07:08:55 End 2024.12.09 @ 07:19:59 Sessions 1 Manual Loads 0 Difficulty Rogue Special Mode None Game No. 2 Rogue 2 Adventurer 0 Explorer 0 Win Type - Total 0 Types 0/0/0/0/0/0/0/0/0 Lore% 1 Gallery% 5 Achievement% 7 Wizard Run 0 Options --------- Layout 1 ASCII 0 Keyboard 0 Movement Numpad Keybinds 0 Fullscreen 2 Font 16/SmallcapsGlow Map View 25x27 Zoom Use 99% Tactical HUD 1 Map Filters NONE Filters NONE Steam 0 RUN: abec481b-4814-47f2-835d-40a3f894c484